bitfinex-derivatives/quotes_BTCF0:USTF0_20250806
["timestamp","ask_amount","ask_price","bid_price","bid_amount"]
[1754472600522,1.93923203,114190.0,114180.0,0.02556]
[1754472600707,1.93923203,114190.0,114160.0,0.40153455]
[1754472600708,0.1985904,114170.0,114160.0,0.40153455]
[1754472600913,0.65462394,114170.0,114160.0,0.3380804]
[1754472601116,1.93028902,114170.0,114160.0,0.2435404]
[1754472601326,2.38632256,114170.0,114160.0,0.02456]
[1754472601922,0.1966058,114160.0,114150.0,0.2435646]
[1754472602123,1.10867288,114160.0,114150.0,0.1997631]
[1754472602420,2.38433796,114160.0,114150.0,0.1997631]
[1754472602920,1.92830442,114160.0,114150.0,0.2712931]
[1754472603428,1.47227088,114160.0,114150.0,0.2943031]
[1754472603624,0.65463934,114160.0,114150.0,0.2943031]
[1754472603921,0.47944354,114160.0,114150.0,0.36327911]
[1754472604121,0.47944354,114170.0,114160.0,0.2942958]
[1754472604423,0.65462394,114170.0,114160.0,0.2942958]
[1754472604622,0.47944354,114170.0,114160.0,0.2942958]
[1754472604922,0.47944354,114170.0,114160.0,0.2952958]
[1754472605126,0.65462414,114170.0,114160.0,0.2952958]
[1754472605426,0.65562414,114170.0,114160.0,0.2952958]
[1754472605628,0.02241,114170.0,114160.0,0.2952958]
[1754472605818,0.001,114170.0,114160.0,0.2952958]
[1754472606622,0.001,114170.0,114160.0,0.2942958]
[1754472607220,0.1761806,114170.0,114160.0,0.2942958]
[1754472607723,0.1831806,114170.0,114160.0,0.2942958]
[1754472608424,0.63921414,114170.0,114160.0,0.2942958]
[1754472608825,0.64121414,114170.0,114160.0,0.2942958]
[1754472610126,0.65562414,114170.0,114160.0,0.2942958]
[1754472624940,0.1995906,114170.0,114160.0,0.2942958]
[1754472625140,0.65562414,114170.0,114160.0,0.2942958]
[1754472626747,0.1995906,114170.0,114160.0,0.2942958]
[1754472627043,0.001,114170.0,114160.0,0.2942958]
[1754472627546,0.001,114170.0,114160.0,0.75032934]
[1754472627743,0.66357485,114190.0,114180.0,0.2224651]
[1754472627942,0.66357485,114190.0,114180.0,0.2926451]
[1754472629147,0.66657485,114190.0,114180.0,0.2926451]
[1754472629349,0.66957485,114190.0,114180.0,0.2926451]
[1754472630240,0.48544354,114190.0,114180.0,0.2926451]
[1754472631447,0.66059334,114190.0,114180.0,0.2926451]
[1754472632141,1.94531638,114190.0,114180.0,0.1994151]
[1754472632343,1.94531638,114190.0,114180.0,0.1751651]
[1754472632551,0.1985751,114180.0,114170.0,0.2627542]
[1754472632847,0.65460864,114180.0,114170.0,0.32839585]
[1754472633034,1.93027372,114180.0,114170.0,0.32839585]
[1754472633238,1.93027372,114180.0,114170.0,0.2189617]
[1754472633547,1.93027372,114180.0,114170.0,0.2432117]
[1754472634036,1.93227372,114180.0,114170.0,0.2432117]
[1754472634441,1.93227372,114180.0,114170.0,0.3228017]
[1754472634742,1.93227372,114180.0,114170.0,0.3364417]
[1754472635948,0.1985904,114170.0,114160.0,0.3065777]
[1754472636144,0.65462394,114170.0,114160.0,0.3308277]
[1754472636342,1.93028902,114170.0,114160.0,0.3308277]
[1754472636541,1.93028902,114170.0,114160.0,0.2870293]
[1754472636742,1.93028902,114170.0,114160.0,0.2432309]
[1754472637745,1.47425548,114170.0,114160.0,0.2432309]
[1754472637946,1.93028902,114170.0,114160.0,0.2432309]
[1754472639146,1.93128902,114170.0,114160.0,0.2432309]
[1754472642249,1.93128902,114170.0,114160.0,0.2688309]
[1754472642447,1.93128902,114170.0,114160.0,0.3228209]
[1754472643149,1.93128902,114170.0,114160.0,0.2905309]
[1754472643343,1.93128902,114170.0,114160.0,0.3364609]
[1754472645045,1.93128902,114170.0,114160.0,0.3228209]
[1754472645756,1.93128902,114170.0,114160.0,0.2688309]
[1754472646151,1.93128902,114170.0,114160.0,0.2432309]
[1754472648847,1.47525548,114170.0,114160.0,0.2432309]
[1754472649048,1.93128902,114170.0,114160.0,0.2432309]
[1754472649253,1.93128902,114170.0,114160.0,0.2593809]
[1754472649451,1.93128902,114170.0,114160.0,0.2916709]
[1754472649854,1.93128902,114170.0,114160.0,0.2593809]
[1754472650050,1.93128902,114170.0,114160.0,0.2432309]
[1754472650659,1.93128902,114170.0,114160.0,0.3147609]
[1754472656467,1.93128902,114170.0,114160.0,0.3011209]
[1754472659761,1.93128902,114170.0,114160.0,0.2432309]
[1754472660770,1.93128902,114170.0,114160.0,0.2683709]
[1754472661069,1.93128902,114170.0,114160.0,0.2432309]
[1754472661266,0.1986043,114160.0,114150.0,0.2420085]
[1754472661765,0.65463784,114160.0,114150.0,0.3377885]
[1754472662670,0.65463784,114160.0,114150.0,0.3387885]
[1754472663870,0.65463784,114160.0,114150.0,0.2681485]
[1754472664066,2.38633646,114160.0,114150.0,0.2199985]
[1754472664273,2.38633646,114160.0,114150.0,0.1762096]
[1754472664571,2.38633646,114160.0,114150.0,0.1992196]
[1754472664969,2.38633646,114160.0,114150.0,0.02401]
[1754472665271,2.38633646,114160.0,114150.0,0.1982196]
[1754472665671,2.38633646,114160.0,114150.0,0.02301]
[1754472665861,2.38633646,114160.0,114150.0,0.1982196]
[1754472666872,0.1934249,114140.0,114130.0,0.38934095]
[1754472667071,0.64945844,114140.0,114130.0,0.40346095]
[1754472667571,0.64945844,114140.0,114130.0,0.2940268]
[1754472668770,1.92512352,114140.0,114130.0,0.1992505]
[1754472669470,1.9338163,114140.0,114130.0,0.1992505]
[1754472669869,1.47778276,114140.0,114130.0,0.1992505]
[1754472670061,1.9338163,114140.0,114130.0,0.2243905]
[1754472670263,1.9338163,114140.0,114130.0,0.2950305]
[1754472672371,0.0438057,114150.0,114130.0,0.4264504]
[1754472672573,0.1752249,114140.0,114130.0,0.88248394]
[1754472672771,0.1752249,114140.0,114130.0,0.4264504]
[1754472674570,0.58745064,114150.0,114130.0,0.2512099]
[1754472674871,0.4817459,114170.0,114150.0,0.2233696]
[1754472674872,0.31558165,114160.0,114150.0,0.2233696]
[1754472675067,0.2190082,114160.0,114150.0,0.2939996]
[1754472675475,0.1752088,114160.0,114150.0,0.2939996]
[1754472675678,0.0437975,114170.0,114160.0,0.3815586]
[1754472676177,0.05252448,114170.0,114160.0,0.3815586]
[1754472676376,0.27151618,114170.0,114160.0,0.3815586]
[1754472677278,0.00872698,114170.0,114160.0,0.83759214]
[1754472677468,0.2189637,114180.0,114170.0,0.1751789]
[1754472677676,0.2189637,114180.0,114170.0,0.63121244]
[1754472677878,0.2189637,114180.0,114170.0,0.1751789]
[1754472678080,0.2189637,114180.0,114170.0,0.63121244]
[1754472678582,0.1751636,114190.0,114180.0,0.2627314]
[1754472678878,0.1751636,114190.0,114180.0,0.71876494]
[1754472679678,0.25334126,114200.0,114190.0,0.1751484]
[1754472679872,0.00883592,114200.0,114190.0,0.63118194]
[1754472680178,0.262688,114210.0,114200.0,0.175133]
[1754472680179,0.2189053,114210.0,114200.0,0.175133]
[1754472680364,0.2189053,114210.0,114200.0,0.63116654]
[1754472680566,0.1751257,114210.0,114200.0,0.63116654]
[1754472681683,0.1801257,114210.0,114200.0,0.63116654]
[1754472682280,0.1871257,114210.0,114200.0,0.63116654]
[1754472682880,0.19594143,114210.0,114200.0,0.63116654]
[1754472683580,0.00881573,114210.0,114200.0,0.63116654]
[1754472683779,0.1751214,114210.0,114200.0,0.71872444]
[1754472684277,0.18389818,114210.0,114200.0,0.71872444]
[1754472684477,0.18389818,114210.0,114200.0,0.2626909]
[1754472684678,0.18389818,114210.0,114200.0,0.71872444]
[1754472685180,0.18389818,114210.0,114200.0,0.67494474]
[1754472695592,0.20656422,114210.0,114200.0,0.67494474]
[1754472699489,0.1751331,114200.0,114190.0,0.2637042]
[1754472699694,0.1751331,114200.0,114190.0,0.63118194]
[1754472699994,0.1751331,114200.0,114190.0,0.1751484]
[1754472700195,0.19782343,114200.0,114190.0,0.1751484]
[1754472700387,0.1751484,114190.0,114180.0,0.71876384]
[1754472701594,0.1761484,114190.0,114180.0,0.71876384]
[1754472703786,0.1781484,114190.0,114180.0,0.71876384]
[1754472704098,0.1781484,114190.0,114180.0,0.63218364]
[1754472705496,0.1751636,114180.0,114170.0,0.76258164]
[1754472705992,0.1751636,114180.0,114170.0,0.67499544]
[1754472706197,0.1751636,114180.0,114170.0,0.1751691]
[1754472706504,0.1751789,114170.0,114160.0,0.71981054]
[1754472707899,0.1761789,114170.0,114160.0,0.71981054]
[1754472709800,0.1761789,114170.0,114160.0,0.45703354]
[1754472710408,0.1761789,114170.0,114160.0,0.001]
[1754472710602,0.45703354,114170.0,114140.0,0.67504974]
[1754472710910,0.1752251,114140.0,114130.0,0.2628476]
[1754472711109,0.1752251,114140.0,114130.0,0.71888114]
[1754472712407,0.1752251,114140.0,114130.0,0.72288114]
[1754472712805,0.1752251,114140.0,114130.0,0.72388114]
[1754472713505,0.1752251,114140.0,114130.0,0.72588114]
[1754472713707,0.1752251,114140.0,114130.0,0.72488114]
[1754472713907,0.1752251,114140.0,114130.0,0.72588114]
[1754472714394,0.1752251,114140.0,114130.0,0.72488114]
[1754472714596,0.1752251,114140.0,114130.0,0.72588114]
[1754472714806,0.1752251,114140.0,114130.0,0.79698591]
[1754472717201,0.18412357,114140.0,114130.0,0.79598591]
[1754472717408,0.18412357,114140.0,114130.0,0.79698591]
[1754472719013,0.18412357,114140.0,114130.0,0.79598591]
[1754472719212,0.18412357,114140.0,114130.0,0.72488114]
[1754472719809,0.2628258,114150.0,114130.0,0.63727024]
[1754472720016,0.21902,114150.0,114140.0,0.55748374]
[1754472720314,0.3066096,114160.0,114140.0,0.51367014]
[1754472720507,0.2190071,114160.0,114150.0,0.55645294]
[1754472720712,0.1752077,114160.0,114150.0,0.55645294]
[1754472722010,0.1752077,114160.0,114150.0,0.55745294]
[1754472723616,0.18404466,114160.0,114150.0,0.55745294]
[1754472728516,0.18404466,114160.0,114150.0,0.1762097]
[1754472729419,0.18404466,114160.0,114150.0,0.63224324]
[1754472734521,0.18404466,114160.0,114150.0,0.1762097]
[1754472735122,0.18404466,114160.0,114150.0,0.63224324]
[1754472737124,0.18404466,114160.0,114150.0,0.70318324]
[1754472737320,0.18404466,114160.0,114150.0,0.2336297]
[1754472737520,0.18404466,114160.0,114150.0,0.07194]
[1754472738025,0.18404466,114160.0,114150.0,0.2471497]
[1754472738727,0.18404466,114160.0,114150.0,0.07194]
[1754472742129,0.18404466,114160.0,114150.0,0.70318314]
[1754472743225,0.20680552,114160.0,114150.0,0.70318314]
[1754472743617,0.20680552,114160.0,114150.0,0.52797354]
[1754472744023,0.20680552,114160.0,114150.0,0.70318314]
[1754472752034,0.20680552,114160.0,114150.0,0.74991314]
[1754472753231,0.18404466,114160.0,114150.0,0.74991314]
[1754472754330,0.00883696,114160.0,114150.0,0.74991314]
[1754472754629,0.3065812,114170.0,114160.0,0.2313286]
[1754472754838,0.3065812,114170.0,114160.0,0.73409214]
[1754472755135,0.32277603,114170.0,114160.0,0.73409214]
[1754472756533,0.32377603,114170.0,114160.0,0.73409214]
[1754472757529,0.23618143,114170.0,114160.0,0.73409214]
[1754472757732,0.01719483,114170.0,114160.0,1.19012568]
[1754472759534,0.19137373,114170.0,114160.0,1.19012568]
[1754472760235,0.19137373,114170.0,114160.0,0.73409214]
[1754472760735,0.19137373,114170.0,114160.0,0.73509214]
[1754472761131,0.19137373,114170.0,114160.0,1.19112568]
[1754472762736,0.0437914,114180.0,114160.0,0.95979708]
[1754472762936,0.2434789,114190.0,114180.0,0.2279423]
[1754472763133,0.3033053,114200.0,114190.0,0.2042083]
[1754472763333,0.3259353,114200.0,114190.0,0.68661184]
[1754472763532,0.3596253,114200.0,114190.0,0.68661184]
[1754472763733,0.3833853,114200.0,114190.0,0.68661184]
[1754472764831,0.3995033,114200.0,114190.0,0.68661184]
[1754472765636,0.4025033,114200.0,114190.0,0.68661184]
[1754472766038,0.3617175,114200.0,114190.0,0.68661184]
[1754472771141,0.3617175,114200.0,114190.0,0.75658643]
[1754472771642,0.3617175,114200.0,114190.0,0.68661184]
[1754472771842,0.3478375,114200.0,114190.0,0.68661184]
[1754472772338,0.046648,114200.0,114190.0,0.68661184]
[1754472772529,0.046648,114200.0,114190.0,0.94951184]
[1754472772735,0.022118,114200.0,114190.0,0.4934783]
[1754472772931,0.03053,114200.0,114190.0,0.94951184]
[1754472773639,0.2056629,114200.0,114190.0,0.94951184]
[1754472774344,0.2554129,114200.0,114190.0,0.94951184]
[1754472775638,0.27133288,114200.0,114190.0,0.94951184]
[1754472776145,0.30384288,114200.0,114190.0,0.94951184]
[1754472776353,0.3018031,114200.0,114190.0,0.94951184]
[1754472776552,0.2443531,114200.0,114190.0,0.94951184]
[1754472776753,0.2217231,114200.0,114190.0,0.94951184]
[1754472776948,0.2217231,114200.0,114190.0,1.01788209]
[1754472777547,0.04659,114200.0,114190.0,1.01788209]
[1754472777748,0.22128832,114200.0,114190.0,1.01788209]
[1754472778159,0.23734832,114200.0,114190.0,1.01788209]
[1754472778350,0.27103832,114200.0,114190.0,1.01788209]
[1754472779357,0.23734832,114200.0,114190.0,1.01788209]
[1754472779964,0.29366832,114200.0,114190.0,1.01788209]
[1754472780458,0.30354832,114200.0,114190.0,0.56184855]
[1754472780658,0.31742832,114200.0,114190.0,0.38670025]
[1754472780962,0.77346186,114200.0,114190.0,0.31833]
[1754472781262,0.77346186,114200.0,114190.0,0.2629]
[1754472782257,0.31742832,114200.0,114190.0,0.4380483]
[1754472782656,0.31742832,114200.0,114190.0,0.2629]
[1754472782956,0.31742832,114200.0,114190.0,0.4380483]
[1754472783254,0.33978688,114200.0,114190.0,0.2629]
[1754472783458,0.33978688,114200.0,114180.0,0.78892624]
[1754472783459,0.2958183,114190.0,114180.0,0.3181619]
[1754472785157,0.31918777,114190.0,114180.0,0.3181619]
[1754472786859,0.31918777,114190.0,114180.0,0.2743711]
[1754472787062,0.31918777,114190.0,114180.0,0.00925]
[1754472787264,0.2958336,114180.0,114170.0,0.21610627]
[1754472787564,0.2958336,114180.0,114170.0,0.05332007]
[1754472787764,0.2958336,114180.0,114170.0,0.02695007]
[1754472788363,0.31822709,114180.0,114170.0,0.02695007]
[1754472788658,0.31822709,114180.0,114170.0,0.04127007]
[1754472789255,0.31922709,114180.0,114170.0,0.21644897]
[1754472789455,0.31922709,114180.0,114170.0,0.22882897]
[1754472789953,0.32022709,114180.0,114170.0,0.05365007]
[1754472790154,0.32022709,114180.0,114170.0,0.02695007]
[1754472790354,0.32022709,114180.0,114170.0,0.01770007]
[1754472791453,0.175179,114170.0,114160.0,0.28708]
[1754472791658,0.2920343,114160.0,114150.0,0.625872]
[1754472791860,0.2920343,114160.0,114150.0,0.5820701]
[1754472792353,0.2920343,114160.0,114150.0,0.5382682]
[1754472792560,0.2920343,114160.0,114150.0,0.4944663]
[1754472793859,0.2920343,114160.0,114150.0,0.95049984]
[1754472794361,0.2920343,114160.0,114150.0,0.95149984]
[1754472795157,0.2534343,114160.0,114150.0,0.95149984]
[1754472795458,0.2920343,114160.0,114150.0,0.95149984]
[1754472795858,0.2920343,114160.0,114150.0,1.0228025]
[1754472796364,0.2534343,114160.0,114150.0,1.0228025]
[1754472796673,0.74806784,114160.0,114150.0,0.03756]
[1754472796964,0.2920343,114160.0,114150.0,0.03756]
[1754472798065,0.2534343,114160.0,114150.0,0.03756]
[1754472798367,0.2920343,114160.0,114150.0,0.03756]
[1754472799061,0.2920343,114160.0,114150.0,0.01086]
[1754472799365,0.2920343,114160.0,114150.0,0.03756]
[1754472800761,0.2920343,114160.0,114150.0,0.2325798]
[1754472801162,0.2920343,114160.0,114150.0,0.05737]
[1754472801567,0.2920343,114160.0,114150.0,0.2325796]
[1754472801769,0.2920343,114160.0,114150.0,0.01086]
[1754472802466,0.2920343,114160.0,114150.0,0.02518]
[1754472803568,0.2920343,114160.0,114150.0,0.03756]
[1754472804574,0.2920343,114160.0,114150.0,0.68861314]
[1754472804771,0.2920343,114160.0,114150.0,0.64210314]
[1754472804968,0.2920343,114160.0,114150.0,0.66880314]
[1754472805970,0.2920343,114160.0,114150.0,0.2325796]
[1754472806675,0.2920343,114160.0,114150.0,0.05737]
[1754472806967,0.2920343,114160.0,114150.0,0.2325797]
[1754472809075,0.2920343,114160.0,114150.0,0.05737]
[1754472809776,0.2920343,114160.0,114150.0,0.2325798]
[1754472811674,0.2920343,114160.0,114150.0,0.05737]
[1754472812372,0.2920343,114160.0,114150.0,0.03756]
[1754472812562,0.74806784,114160.0,114150.0,0.001]
[1754472816771,0.2920343,114160.0,114150.0,0.1860696]
[1754472816971,0.2920343,114160.0,114150.0,0.68861314]
[1754472817273,0.06096,114160.0,114150.0,0.68861314]
[1754472817474,0.02288,114160.0,114150.0,0.95151314]
[1754472820078,0.1980745,114160.0,114150.0,0.95151314]
[1754472821180,0.2684845,114160.0,114150.0,0.95151314]
[1754472821478,0.2915645,114160.0,114150.0,0.95151314]
[1754472822475,0.2684845,114160.0,114150.0,0.95151314]
[1754472822681,0.1980743,114160.0,114150.0,0.95151314]
[1754472822981,0.49982194,114190.0,114170.0,0.184329]
[1754472822982,0.3312418,114180.0,114170.0,0.184329]
[1754472823173,0.3312418,114180.0,114170.0,0.68736254]
[1754472823981,0.4016518,114180.0,114170.0,0.68736254]
[1754472824478,0.4257318,114180.0,114170.0,0.68736254]
[1754472825181,0.4277318,114180.0,114170.0,0.68736254]
[1754472827783,0.4277318,114180.0,114170.0,0.95026254]
[1754472828880,0.4277318,114180.0,114170.0,0.75026254]
[1754472829183,0.4277318,114180.0,114170.0,0.93459154]
[1754472830787,0.1751944,114160.0,114150.0,0.1024081]
[1754472830978,0.11818,114160.0,114150.0,0.3305493]
[1754472831180,0.2933744,114160.0,114150.0,0.78658284]
[1754472831985,0.2796544,114160.0,114150.0,0.78758284]
[1754472832787,0.3312732,114170.0,114160.0,0.1991543]
[1754472832988,0.2874751,114170.0,114160.0,0.65518784]
[1754472833184,0.2436778,114170.0,114160.0,0.65518784]
[1754472835181,0.2446778,114170.0,114160.0,0.65518784]
[1754472835380,0.2446778,114170.0,114160.0,1.11122138]
[1754472835891,0.2199878,114170.0,114160.0,1.11122138]
[1754472836092,0.2446778,114170.0,114160.0,1.11122138]
[1754472836693,0.2436778,114170.0,114160.0,1.11122138]
[1754472836889,0.2436778,114170.0,114160.0,1.11222138]
[1754472837790,0.2436778,114170.0,114160.0,0.65618784]
[1754472839093,0.02469,114170.0,114160.0,0.65618784]
[1754472839291,0.1998689,114170.0,114160.0,0.65618784]
[1754472840003,0.1998689,114170.0,114160.0,1.11222138]
[1754472841301,0.2479989,114170.0,114160.0,1.11222138]
[1754472841600,0.2702789,114170.0,114160.0,1.11222138]
[1754472842197,0.2796389,114170.0,114160.0,1.11222138]
[1754472842496,0.2796389,114170.0,114160.0,1.37512138]
[1754472843095,0.2796389,114170.0,114160.0,0.91908784]
[1754472843899,0.279639,114170.0,114160.0,0.91908784]
[1754472844902,0.279639,114170.0,114160.0,1.37512138]
[1754472845305,0.2796389,114170.0,114160.0,1.37512138]
[1754472845506,0.2933589,114170.0,114160.0,0.91908784]
[1754472847304,0.2933589,114170.0,114160.0,0.91808784]
[1754472848005,0.2943589,114170.0,114160.0,0.91808784]
[1754472855605,0.02569,114170.0,114160.0,1.37412138]
[1754472856303,1.52569,114170.0,114160.0,1.37412138]
[1754472857206,1.52569,114170.0,114160.0,1.37512138]
[1754472857602,1.52469,114170.0,114160.0,1.37512138]
[1754472859601,1.52469,114170.0,114160.0,1.48455553]
[1754472860713,1.52469,114170.0,114160.0,1.37512138]
[1754472860913,1.55753,114170.0,114160.0,1.37512138]
[1754472861308,1.57152,114170.0,114160.0,1.37512138]
[1754472861818,1.7466995,114170.0,114160.0,0.91908784]
[1754472863512,1.7466995,114170.0,114160.0,0.91808784]
[1754472863709,1.7476995,114170.0,114160.0,0.91808784]
[1754472864311,1.57252,114170.0,114160.0,0.91808784]
[1754472865322,1.57252,114170.0,114160.0,1.37412138]
[1754472866120,1.57252,114170.0,114160.0,1.37512138]
[1754472866516,1.7476994,114170.0,114160.0,0.91908784]
[1754472867421,1.57252,114170.0,114160.0,0.91831784]
[1754472868625,1.7476995,114170.0,114160.0,0.91831784]
[1754472869328,1.7476995,114170.0,114160.0,0.91731784]
[1754472869627,1.7466995,114170.0,114160.0,0.91731784]
[1754472870035,1.7466995,114170.0,114160.0,0.91831784]
[1754472870537,1.7466995,114170.0,114160.0,0.91731784]
[1754472872439,1.7466995,114170.0,114160.0,0.4612843]
[1754472872739,1.7466995,114170.0,114160.0,0.4472443]
[1754472872940,1.7476995,114170.0,114160.0,0.89412784]
[1754472874540,1.7476995,114170.0,114160.0,0.91789784]
[1754472875436,1.7476995,114170.0,114160.0,0.89412784]
[1754472878545,1.7476995,114170.0,114160.0,0.90385784]
[1754472878745,1.7476995,114170.0,114160.0,0.91757784]
[1754472879150,1.7476995,114170.0,114160.0,0.90385784]
[1754472881850,1.7476995,114170.0,114160.0,0.89412784]
[1754472885646,1.7476995,114170.0,114160.0,0.2629]
[1754472885849,1.7476995,114170.0,114160.0,0.4380948]
[1754472886048,1.7466995,114170.0,114160.0,0.4380948]
[1754472886247,1.7466995,114170.0,114160.0,0.4390948]
[1754472886842,1.7466995,114170.0,114160.0,0.4380948]
[1754472887141,1.7476995,114170.0,114160.0,0.4380948]
[1754472887649,1.7476995,114170.0,114160.0,0.1751948]
[1754472888450,1.7476995,114170.0,114160.0,0.63122834]
[1754472890850,1.7486995,114170.0,114160.0,0.1751948]
[1754472891756,0.2220149,114160.0,114150.0,0.78572134]
[1754472892050,0.2929949,114160.0,114150.0,0.76263134]
[1754472892641,0.2929949,114160.0,114150.0,0.67502974]
[1754472892848,0.2929949,114160.0,114150.0,0.1751979]
[1754472893150,0.2939949,114160.0,114150.0,0.1751979]
[1754472893850,0.2939949,114160.0,114150.0,0.63123144]
[1754472895054,0.2939949,114160.0,114150.0,0.1751979]
[1754472895445,0.2949949,114160.0,114150.0,0.1751979]
[1754472901143,0.2949949,114160.0,114150.0,0.1982879]
[1754472909157,0.2949949,114160.0,114150.0,0.1751979]
[1754472909363,0.2952603,114150.0,114140.0,0.3304086]
[1754472909556,0.2952603,114150.0,114140.0,0.2866027]
[1754472909856,0.2952603,114150.0,114140.0,0.2427968]
[1754472910159,0.2952603,114150.0,114140.0,0.1989926]
[1754472910359,0.2952756,114140.0,114130.0,0.34444146]
[1754472910564,0.2952756,114140.0,114130.0,0.2866276]
[1754472910767,0.2952756,114140.0,114130.0,0.2428181]
[1754472911059,0.2952756,114140.0,114130.0,0.1990086]
[1754472911663,0.31122119,114140.0,114130.0,0.1990086]
[1754472912156,0.31122119,114140.0,114130.0,0.1849886]
[1754472912461,0.31122119,114140.0,114130.0,0.1990086]
[1754472913553,0.31122119,114140.0,114130.0,0.65504214]
[1754472914665,0.3829489,114120.0,114110.0,0.1990515]
[1754472915056,0.3829489,114120.0,114110.0,0.65508504]
[1754472916563,0.3829489,114120.0,114110.0,0.65808504]
[1754472917357,0.3829489,114120.0,114110.0,0.65908504]
[1754472918160,0.2606475,114120.0,114110.0,0.65908504]
[1754472918363,0.2226608,114130.0,114120.0,0.2692356]
[1754472918561,0.2226608,114130.0,114120.0,0.09398]
[1754472919158,0.2226608,114130.0,114120.0,0.2692362]
[1754472919366,0.2226608,114130.0,114120.0,0.72526974]
[1754472919757,0.2226608,114130.0,114120.0,0.72626974]
[1754472919957,0.2226608,114130.0,114120.0,0.74883974]
[1754472920452,0.2932108,114130.0,114120.0,0.74883974]
[1754472921065,0.2932108,114130.0,114120.0,0.2928062]
[1754472921262,0.4392896,114140.0,114130.0,0.291791]
[1754472921457,0.1898759,114140.0,114130.0,0.74782454]
[1754472921658,0.2139959,114140.0,114130.0,0.74782454]
[1754472921859,0.1898759,114140.0,114130.0,0.74782454]
[1754472922058,0.2139959,114140.0,114130.0,0.74782454]
[1754472923768,0.2139959,114140.0,114130.0,0.291791]
[1754472924068,0.2139959,114140.0,114130.0,0.74782454]
[1754472924665,0.2866559,114140.0,114130.0,0.74782454]
[1754472924865,0.3078459,114140.0,114130.0,0.74782454]
[1754472925968,0.2960859,114140.0,114130.0,0.74782454]
[1754472926169,0.2866559,114140.0,114130.0,0.74782454]
[1754472926361,0.3078459,114140.0,114130.0,0.74782454]
[1754472927265,0.2866559,114140.0,114130.0,0.74782454]
[1754472927470,0.0549403,114140.0,114130.0,0.74782454]
[1754472927670,0.257014,114150.0,114140.0,0.2225157]
[1754472927868,0.281134,114150.0,114140.0,0.74780924]
[1754472928069,0.2720011,114150.0,114140.0,0.74780924]
[1754472928473,0.3563574,114160.0,114150.0,0.1752103]
[1754472928676,0.3807754,114160.0,114150.0,0.74779384]
[1754472929363,0.39529994,114160.0,114150.0,0.64100384]
[1754472929560,0.39729994,114160.0,114150.0,0.72522384]
[1754472929964,0.39729994,114160.0,114150.0,0.74779384]
[1754472930671,0.39729994,114160.0,114150.0,0.2917603]
[1754472931576,0.39729994,114160.0,114150.0,0.74779384]
[1754472934475,0.39729994,114160.0,114150.0,0.2917603]
[1754472934676,0.39729994,114160.0,114150.0,0.74779384]
[1754472934873,0.34143994,114160.0,114150.0,0.74779384]
[1754472935180,0.37610994,114160.0,114150.0,0.74779384]
[1754472936174,0.25383984,114160.0,114150.0,0.74779384]
[1754472936378,0.19172984,114160.0,114150.0,0.74779384]
[1754472937877,0.21584984,114160.0,114150.0,0.74779384]
[1754472938275,0.21484984,114160.0,114150.0,0.74779384]
[1754472938677,0.21384984,114160.0,114150.0,0.70369384]
[1754472939078,0.24662984,114160.0,114150.0,0.2476603]
[1754472939281,0.28422984,114160.0,114150.0,0.70369384]
[1754472939572,0.76187338,114160.0,114150.0,0.00976]
[1754472939876,0.76187338,114160.0,114150.0,0.02381]
[1754472940475,0.2894403,114150.0,114140.0,0.09479]
[1754472941282,0.1752256,114140.0,114130.0,0.2190411]
[1754472941578,0.1752256,114140.0,114130.0,0.67507464]
[1754472947085,0.1752256,114140.0,114130.0,0.67507464]
[1754472954681,0.1752256,114140.0,114130.0,0.2190411]
[1754472954883,0.1752256,114140.0,114130.0,0.67507464]
[1754472957792,0.3066381,114150.0,114140.0,0.1752265]
[1754472957979,0.2190271,114150.0,114140.0,0.63126004]
[1754472958285,0.10212524,114160.0,114150.0,0.1752111]
[1754472958484,0.27733424,114160.0,114150.0,0.63124464]
[1754472958880,0.18973354,114160.0,114150.0,0.63124464]
[1754472959286,0.01452454,114160.0,114150.0,0.63124464]
[1754472959486,0.1751958,114160.0,114150.0,0.63124464]
[1754472960690,0.18981308,114160.0,114150.0,0.63124464]
[1754472961393,0.18981308,114160.0,114150.0,0.1752111]
[1754472961593,0.19081308,114160.0,114150.0,0.63124464]
[1754472962185,0.19181308,114160.0,114150.0,0.63124464]
[1754472962699,0.19181308,114160.0,114150.0,0.1752111]
[1754472962898,0.19181308,114160.0,114150.0,0.63124464]
[1754472963089,0.19281308,114160.0,114150.0,0.63124464]
[1754472964395,0.19181308,114160.0,114150.0,0.63124464]
[1754472965592,0.19081308,114160.0,114150.0,0.63124464]
[1754472965792,0.18981308,114160.0,114150.0,0.63124464]
[1754472967998,0.19081308,114160.0,114150.0,0.63124464]
[1754472968900,0.19181308,114160.0,114150.0,0.63124464]
[1754472977492,0.19081308,114160.0,114150.0,0.63124464]
[1754472978506,0.18981308,114160.0,114150.0,0.63124464]
[1754472979201,0.19081308,114160.0,114150.0,0.63124464]
[1754472980107,0.19181308,114160.0,114150.0,0.63124464]
[1754472980700,0.19081308,114160.0,114150.0,0.63124464]
[1754472981305,0.19081308,114160.0,114150.0,0.1752111]
[1754472981597,0.19081308,114160.0,114150.0,0.63124464]
[1754472981799,0.1752111,114150.0,114140.0,0.5257285]
[1754472982402,0.1752111,114150.0,114140.0,0.98176204]
[1754472982609,0.1752111,114150.0,114140.0,0.89415494]
[1754472982802,0.1752111,114150.0,114140.0,0.2629]
[1754472983302,0.1752111,114150.0,114140.0,0.4381265]
[1754472984501,0.1772111,114150.0,114140.0,0.1752265]
[1754472985811,0.1752265,114140.0,114130.0,0.98178694]
[1754472986109,0.1752265,114140.0,114130.0,0.4819435]
[1754472986304,0.1752265,114140.0,114130.0,0.93797704]
[1754472990513,0.1752265,114140.0,114130.0,0.2190435]
[1754472990813,0.1752265,114140.0,114130.0,0.67507704]
[1754472993922,0.1752419,114130.0,114120.0,0.98180584]
[1754472995219,0.1752419,114130.0,114120.0,0.5257723]
[1754472995425,0.1752419,114130.0,114120.0,0.63129074]
[1754472995627,0.1752572,114120.0,114110.0,0.98182904]
[1754472996826,0.1752572,114120.0,114110.0,0.98582904]
[1754472997727,0.3066935,114130.0,114120.0,0.1752572]
[1754472997929,0.3066935,114130.0,114120.0,0.63129074]
[1754472999029,0.2628797,114130.0,114120.0,0.63129074]
[1754472999327,0.2628797,114130.0,114120.0,0.63229074]
[1754473000722,0.2628797,114130.0,114120.0,0.1762572]
[1754473001127,0.2628797,114130.0,114120.0,0.63229074]
[1754473001628,0.2628797,114130.0,114120.0,0.1762572]
[1754473003227,0.2628797,114130.0,114120.0,0.001]
[1754473004031,0.2628797,114130.0,114120.0,0.1762572]
[1754473004233,0.2628797,114130.0,114120.0,0.63229074]
[1754473004531,0.2628557,114140.0,114130.0,0.1752418]
[1754473004725,0.2628557,114140.0,114130.0,0.63127534]
[1754473005521,0.2190465,114140.0,114130.0,0.63127534]
[1754473005733,0.1752392,114140.0,114130.0,0.63127534]
[1754473008834,0.2628302,114150.0,114140.0,0.1752265]
[1754473009035,0.2628302,114150.0,114140.0,0.63126004]
[1754473010233,0.2638302,114150.0,114140.0,0.63126004]
[1754473010736,0.2648302,114150.0,114140.0,0.63126004]